bitfinex/quotes_SOLUSD_20241215
["timestamp","ask_amount","ask_price","bid_price","bid_amount"]
[1734242781890,1.6194,219.85,219.76,11.54]
[1734242782090,1.6194,219.85,219.74,8.76749412]
[1734242783513,1.6194,219.85,219.73,8.76749412]
[1734242784709,1.6194,219.85,219.74,23.776884]
[1734242785804,1.6194,219.85,219.74,32.54437812]
[1734242787119,1.6194,219.85,219.75,8.76749412]
[1734242789999,1.6194,219.85,219.76,8.76749412]
[1734242790613,1.6194,219.85,219.77,32.54437812]
[1734242790926,1.6194,219.85,219.77,8.76749412]
[1734242794316,1.6194,219.85,219.78,8.76749412]
[1734242794624,1.6194,219.85,219.77,8.76749412]
[1734242794827,1.6194,219.85,219.76,8.76749412]
[1734242795125,1.6194,219.85,219.77,23.776884]
[1734242795436,1.6194,219.85,219.77,8.76749412]
[1734242796303,1.6194,219.85,219.74,0.68238885]
[1734242796500,1.6194,219.85,219.75,0.69]
[1734242797232,1.6194,219.85,219.73,8.76749412]
[1734242798301,1.6194,219.85,219.74,8.76749412]
[1734242801800,1.6194,219.85,219.72,0.5563207]
[1734242802022,1.6194,219.85,219.73,8.76749412]
[1734242803821,1.6194,219.85,219.74,8.76749412]
[1734242807831,1.6194,219.85,219.73,28.76749412]
[1734242812822,1.6194,219.85,219.75,8.76749412]
[1734242813019,1.6194,219.85,219.76,9.44986887]
[1734242813230,1.6194,219.85,219.78,8.76749412]
[1734242815921,24.027864,219.84,219.75,0.68230996]
[1734242816120,20.0,219.8,219.72,0.5563207]
[1734242819121,20.0,219.8,219.72,9.32381482]
[1734242819335,20.0,219.8,219.72,0.5563207]
[1734242819647,20.0,219.8,219.72,9.32381482]
[1734242820819,20.0,219.8,219.72,0.5563207]
[1734242823241,19.96998967,219.8,219.72,0.5563207]
[1734242833343,19.84994834,219.8,219.72,0.5563207]
[1734242833858,8.0194,219.83,219.72,0.5563207]
[1734242836872,1.6171,219.82,219.72,0.5563207]
[1734242837061,20.0,219.8,219.72,0.5563207]
[1734242865989,1.6368,219.79,219.72,0.5563207]
[1734242870472,0.12549,219.78,219.72,0.5563207]
[1734242870722,0.25098,219.78,219.72,0.5563207]
[1734242871998,1.6368,219.79,219.72,0.5563207]
[1734242882810,20.25098,219.78,219.72,0.5563207]
[1734242885630,0.25098,219.76,219.72,0.5563207]
[1734242886221,20.0,219.74,219.72,0.5563207]
[1734242887325,0.12549,219.73,219.72,0.5563207]
[1734242887538,25.582264,219.73,219.72,0.5563207]
[1734242889599,0.25098,219.69,219.58,8.76749412]
[1734242889801,0.25098,219.69,219.57,15.12939412]
[1734242890019,20.0,219.66,219.52,6.91051665]
[1734242890423,20.0,219.66,219.56,8.76749412]
[1734242890927,20.0,219.66,219.55,8.76749412]
[1734242891231,0.5,219.65,219.52,6.2275]
[1734242891438,0.5,219.65,219.54,8.76749412]
[1734242892001,0.5,219.65,219.53,8.76749412]
[1734242892198,0.25098,219.64,219.5,2.81463953]
[1734242892403,0.5,219.63,219.52,8.76749412]
[1734242893324,0.5,219.63,219.51,8.76749412]
[1734242893843,20.0,219.62,219.51,8.76749412]
[1734242894007,0.5,219.61,219.51,8.76749412]
[1734242894344,0.12549,219.63,219.51,8.76749412]
[1734242894509,20.0,219.61,219.51,8.76749412]
[1734242894715,0.5,219.6,219.51,8.76749412]
[1734242896708,0.5,219.6,219.5,9.32381482]
[1734242896915,0.5,219.6,219.51,8.76749412]
[1734242897114,0.5,219.6,219.52,8.76749412]
[1734242897316,0.5,219.6,219.51,8.76749412]
[1734242900534,0.5,219.6,219.5,0.5563207]
[1734242900737,0.5,219.6,219.5,9.32381482]
[1734242901235,20.0,219.59,219.5,0.5563207]
[1734242901419,0.5,219.58,219.5,0.5563207]
[1734242904923,0.25098,219.57,219.5,0.5563207]
[1734242905126,1.6092,219.55,219.5,0.5563207]
[1734242905352,0.5,219.54,219.5,0.5563207]
[1734242905525,0.25098,219.51,219.5,0.5563207]
[1734242905839,2.36018,219.51,219.5,0.0563207]
[1734242907222,26.137064,219.51,219.5,0.0563207]
[1734242908536,2.1092,219.51,219.5,0.0563207]
[1734242908923,0.12549,219.47,219.33,7.9058]
[1734242909129,20.62549,219.47,219.35,8.76749412]
[1734242909730,0.62549,219.47,219.35,8.76749412]
[1734242910334,0.62549,219.47,219.33,8.58949613]
[1734242910542,0.62549,219.47,219.37,8.76749412]
[1734242910742,0.62549,219.47,219.36,8.76749412]
[1734242911244,0.62549,219.47,219.37,8.76749412]
[1734242912242,0.62549,219.47,219.36,8.76749412]
[1734242913245,0.62549,219.47,219.36,20.0]
[1734242913445,0.62549,219.47,219.36,28.76749412]
[1734242913948,0.12549,219.46,219.33,8.58948441]
[1734242914145,0.5,219.45,219.33,6.3166]
[1734242914353,0.5,219.45,219.34,8.76749412]
[1734242914960,0.5,219.45,219.35,8.76749412]
[1734242915154,0.5,219.47,219.36,20.68371247]
[1734242915455,1.6092,219.51,219.36,20.68371247]
[1734242915456,0.12549,219.49,219.39,8.76749412]
[1734242916656,0.12549,219.49,219.36,20.68371247]
[1734242916657,20.12549,219.49,219.36,20.68371247]
[1734242916960,0.5,219.48,219.39,8.76749412]
[1734242918531,0.5,219.48,219.4,8.76749412]
[1734242918736,0.5,219.48,219.41,8.76749412]
[1734242918952,2.1092,219.51,219.42,8.76749412]
[1734242920160,2.1092,219.51,219.45,8.76749412]
[1734242920457,2.1158,219.56,219.47,8.76749412]
[1734242921077,2.1158,219.56,219.48,8.76749412]
[1734242921251,2.1158,219.56,219.47,8.76749412]
[1734242924871,2.1158,219.56,219.45,20.0]
[1734242925068,2.1158,219.56,219.47,8.76749412]
[1734242925255,2.1158,219.56,219.46,8.76749412]
[1734242925946,2.1158,219.56,219.47,8.76749412]
[1734242929459,2.1158,219.56,219.48,8.76749412]
[1734242929670,2.1158,219.56,219.47,8.76749412]
[1734242930656,2.1158,219.56,219.51,8.76749412]
[1734242930876,6.067,219.62,219.52,8.76749412]
[1734242930877,1.5222,219.61,219.52,8.76749412]
[1734242931172,0.5,219.6,219.52,8.76749412]
[1734242934004,2.0222,219.61,219.53,8.76749412]
[1734242934199,2.0222,219.61,219.55,8.76749412]
[1734242934510,2.0222,219.61,219.54,8.76749412]
[1734242937885,1.5222,219.61,219.54,8.76749412]
[1734242938456,0.5,219.66,219.57,8.76749412]
[1734242938677,2.0222,219.66,219.57,8.76749412]
[1734242940589,2.0222,219.66,219.58,8.76749412]
[1734242942775,2.0222,219.66,219.57,8.76749412]
[1734242946089,1.5222,219.66,219.61,8.76749412]
[1734242947286,1.5222,219.66,219.62,8.76749412]
[1734242947788,8.1569,219.71,219.62,8.76749412]
[1734242948171,8.1569,219.71,219.63,8.76749412]
[1734242949968,8.1569,219.71,219.62,8.76749412]
[1734242952685,8.1569,219.71,219.63,8.76749412]
[1734242954484,8.1569,219.71,219.64,8.76749412]
[1734242954787,2.0899,219.71,219.64,8.76749412]
[1734242957689,7.7339,219.76,219.68,8.76749412]
[1734242957885,7.7339,219.76,219.69,8.76749412]
[1734242958309,1.5899,219.76,219.71,8.76749412]
[1734242958615,1.5899,219.76,219.72,8.76749412]
[1734242959173,1.5899,219.76,219.71,8.76749412]
[1734242959970,1.5899,219.76,219.72,8.76749412]
[1734242960680,1.5899,219.76,219.73,8.76749412]
[1734242961081,0.5,219.8,219.73,8.76749412]
[1734242961594,0.5,219.8,219.72,8.76749412]
[1734242961975,0.5,219.8,219.64,0.68254772]
[1734242962198,0.5,219.8,219.7,8.76749412]
[1734242964688,0.5,219.8,219.69,8.76749412]
[1734242966286,0.5,219.8,219.66,20.0]
[1734242966616,0.5,219.8,219.69,8.76749412]
[1734242973694,0.12549,219.79,219.68,8.76749412]
[1734242973883,1.5926,219.77,219.66,28.76749412]
[1734242974085,0.5,219.76,219.66,20.0]
[1734242974292,0.5,219.76,219.61,23.902374]
[1734242974592,0.5,219.76,219.64,8.76749412]
[1734242975409,0.5,219.76,219.65,8.76749412]
[1734242978411,0.5,219.76,219.64,8.76749412]
[1734242978412,7.9792,219.74,219.64,8.76749412]
[1734242978595,0.5,219.73,219.64,8.76749412]
[1734242980189,0.5,219.73,219.65,8.76749412]
[1734242981415,0.5,219.73,219.66,8.76749412]
[1734242985038,0.5,219.73,219.65,8.76749412]
[1734242989702,0.5,219.73,219.64,8.76749412]
[1734242990802,0.5,219.73,219.62,8.76749412]
[1734242991222,0.5,219.73,219.63,8.76749412]
[1734242993504,0.5,219.73,219.62,8.76749412]
[1734242994624,0.5,219.73,219.63,8.76749412]
[1734242995142,0.5,219.73,219.64,8.76749412]
[1734242995702,0.5,219.73,219.63,8.76749412]
[1734243000630,0.5,219.73,219.62,8.76749412]
[1734243003827,0.12549,219.72,219.62,8.76749412]
[1734243004018,0.25098,219.7,219.58,20.0]
[1734243004323,0.25098,219.7,219.53,11.47514252]
[1734243004324,0.5,219.69,219.6,20.0]
[1734243004527,0.12549,219.68,219.6,20.0]
[1734243004829,0.25098,219.66,219.51,7.10303189]
[1734243005013,0.5,219.65,219.55,8.76749412]
[1734243005415,0.5,219.65,219.54,8.76749412]
[1734243005912,0.75098,219.66,219.53,8.76749412]
[1734243006836,1.5545,219.63,219.53,8.76749412]
[1734243007009,0.5,219.62,219.53,8.76749412]
[1734243007829,0.5,219.62,219.52,8.76749412]
[1734243008634,0.5,219.62,219.48,20.68311815]
[1734243008936,0.25098,219.59,219.42,13.0599]
[1734243009136,0.75098,219.59,219.47,8.76749412]
[1734243009327,0.25098,219.57,219.42,2.34962147]
[1734243009528,0.25098,219.57,219.45,8.76749412]
[1734243009529,0.5,219.56,219.45,8.76749412]
[1734243011823,6.5701,219.53,219.41,0.6833945]
[1734243012025,0.5,219.52,219.42,8.76749412]
[1734243012242,0.5,219.52,219.41,8.76749412]
[1734243012417,0.5,219.52,219.4,8.76749412]
[1734243013017,0.25098,219.51,219.4,8.76749412]
[1734243013232,0.5,219.5,219.4,8.76749412]
[1734243014837,0.5,219.5,219.37,20.0]
[1734243015074,0.5,219.5,219.39,20.0]
[1734243015230,0.5,219.5,219.4,8.76749412]
[1734243015430,0.5,219.5,219.39,28.76749412]
[1734243016831,0.5,219.5,219.4,8.76749412]
[1734243021148,0.5,219.51,219.43,8.76749412]
[1734243021326,0.5,219.52,219.43,8.76749412]
[1734243022350,0.5,219.52,219.42,8.76749412]
[1734243022530,0.5,219.52,219.4,28.76749412]
[1734243025249,0.5,219.52,219.41,8.76749412]
[1734243027059,1.5998,219.5,219.39,28.76749412]
[1734243027355,0.5,219.49,219.39,28.76749412]
[1734243027742,0.5,219.49,219.4,8.76749412]
[1734243028331,0.5,219.49,219.41,8.76749412]
[1734243028554,1.5998,219.5,219.41,8.76749412]
[1734243028848,1.5998,219.5,219.42,8.76749412]
[1734243031142,1.5998,219.5,219.43,8.76749412]
[1734243032137,1.5998,219.5,219.42,8.76749412]
[1734243039356,1.5998,219.5,219.41,32.54437812]
[1734243041252,1.5998,219.5,219.42,9.45089566]
[1734243041968,1.5998,219.5,219.43,8.76749412]
[1734243044645,1.5998,219.5,219.42,0.68340154]
[1734243045176,1.5998,219.5,219.42,9.45089566]
[1734243047864,1.5998,219.5,219.43,8.76749412]
[1734243049747,1.5998,219.5,219.42,9.45089566]
[1734243051955,1.5998,219.5,219.41,23.776884]
[1734243054276,1.5998,219.5,219.43,20.0]
[1734243060381,0.5,219.49,219.37,0.68343601]
[1734243060560,0.5,219.49,219.37,8.76749412]
[1734243060761,0.5,219.49,219.36,0.12549]
[1734243061059,0.5,219.49,219.37,8.76749412]
[1734243061248,8.1965,219.48,219.35,9.45106181]
[1734243061453,0.5,219.47,219.34,8.76749412]
[1734243062278,1.5732,219.46,219.34,8.76749412]
[1734243062571,0.5,219.45,219.37,20.0]
[1734243063370,20.5,219.45,219.33,8.76749412]
[1734243063580,1.5732,219.44,219.33,8.76749412]
[1734243063875,0.5,219.43,219.33,8.76749412]
[1734243065176,0.5,219.43,219.32,28.76749412]
[1734243065379,1.5732,219.39,219.27,0.5563207]
[1734243065555,0.5,219.38,219.3,13.81]
[1734243065876,0.5,219.38,219.29,8.76749412]
[1734243066173,1.5732,219.39,219.31,8.76749412]
[1734243067781,1.5732,219.39,219.33,8.76749412]
[1734243068078,1.5732,219.39,219.34,8.76749412]
[1734243072589,1.5732,219.39,219.32,9.45128344]
[1734243073300,1.5732,219.39,219.33,8.76749412]
[1734243075201,1.5732,219.39,219.34,8.76749412]
[1734243075407,5.0,219.55,219.34,8.76749412]
[1734243075408,1.5052,219.44,219.38,8.76749412]
[1734243075706,1.5052,219.44,219.39,9.45102953]
[1734243075903,1.5052,219.44,219.39,8.76749412]
[1734243076080,1.5052,219.44,219.32,0.68351407]
[1734243076081,1.5052,219.44,219.38,8.76749412]
[1734243077683,1.5052,219.44,219.39,8.76749412]
[1734243078998,1.5052,219.44,219.38,8.76749412]
[1734243079189,1.5052,219.44,219.33,0.68357242]
[1734243079190,0.5,219.43,219.33,0.68357242]
[1734243079401,0.5,219.43,219.33,8.76749412]
[1734243079805,0.5,219.43,219.29,0.25098]
[1734243080006,0.5,219.43,219.33,8.76749412]
[1734243080373,0.5,219.43,219.34,9.65749412]
[1734243081680,0.5,219.43,219.34,8.76749412]
[1734243082897,0.5,219.43,219.33,8.76749412]
[1734243083494,0.5,219.43,219.32,0.12549]
[1734243083696,0.5,219.43,219.33,8.76749412]
[1734243084501,0.5,219.43,219.33,20.0]
[1734243085192,0.5,219.43,219.34,20.0]
[1734243085699,0.5,219.43,219.33,28.76749412]
[1734243086906,0.5,219.43,219.33,20.0]
[1734243087082,20.5,219.43,219.31,8.76749412]
[1734243087992,20.5,219.43,219.3,8.76749412]
[1734243088394,1.66819,219.42,219.29,8.76749412]
[1734243088588,0.5,219.41,219.29,8.76749412]
[1734243090409,6.2522,219.4,219.29,8.76749412]
[1734243090709,0.5,219.39,219.29,8.76749412]
[1734243091015,0.5,219.39,219.28,23.776884]
[1734243091306,0.5,219.39,219.29,8.76749412]
[1734243094013,0.5,219.39,219.3,8.76749412]
[1734243095821,0.5,219.39,219.31,8.76749412]
[1734243097810,0.5,219.39,219.3,8.76749412]
[1734243100908,0.5,219.39,219.29,9.4512999]
[1734243101214,0.5,219.39,219.3,8.76749412]
[1734243103003,6.2522,219.4,219.3,8.76749412]
[1734243103203,6.2522,219.4,219.31,8.76749412]
[1734243103607,6.7522,219.4,219.31,8.76749412]
[1734243103914,6.2522,219.4,219.32,9.45126899]
[1734243104296,0.5,219.39,219.31,20.0]
[1734243105719,0.5,219.39,219.27,0.5563207]
[1734243105720,1.5315,219.38,219.27,1.2401108]
[1734243105904,0.5,219.37,219.27,9.32381482]
[1734243108320,0.2236035,219.29,219.27,9.32381482]
[1734243108618,0.2236035,219.29,219.27,0.5563207]
[1734243109013,0.2236035,219.29,219.27,9.32381482]
[1734243111414,0.2236035,219.29,219.27,0.5563207]
[1734243124354,0.2236035,219.29,219.27,9.32381482]
[1734243124525,0.2236035,219.29,219.27,0.5563207]
[1734243130042,0.2236035,219.29,219.28,9.45140824]
[1734243132235,0.2236035,219.29,219.28,33.47927224]
[1734243133746,0.2236035,219.29,219.27,20.5563207]
[1734243133953,0.2236035,219.29,219.28,20.0]
[1734243135035,0.2236035,219.29,219.28,8.76749412]
[1734243137449,0.2236035,219.29,219.28,32.79535812]
[1734243139453,0.2236035,219.29,219.28,32.91535812]
[1734243144159,0.2236035,219.29,219.28,24.147864]
[1734243144344,0.2236035,219.29,219.28,32.79535812]
[1734243147257,0.2236035,219.29,219.28,32.91535812]
[1734243147948,0.2236035,219.29,219.28,33.59902821]
[1734243148961,3.5e-06,219.29,219.28,33.59902821]
[1734243149170,3.5e-06,219.29,219.28,68.66900469]
[1734243149947,3.5e-06,219.29,219.28,24.83153409]
[1734243150453,3.5e-06,219.29,219.28,33.59902821]
[1734243153558,3.5e-06,219.29,219.28,68.66900469]
[1734243153864,3.5e-06,219.29,219.28,203.36900469]
[1734243154056,3.5e-06,219.29,219.28,202.6853346]
[1734243156173,3.5e-06,219.29,219.28,207.6853346]
[1734243158570,3.5e-06,219.29,219.28,212.50843268]
[1734243159873,3.5e-06,219.29,219.28,214.3471207]
[1734243160067,1.5231,219.41,219.37,8.76749412]
[1734243164470,1.5231,219.41,219.33,0.68356775]
[1734243164471,1.5231,219.41,219.39,8.76749412]
[1734243164666,1.5687,219.46,219.4,8.76749412]
[1734243164871,1.5687,219.46,219.43,8.76749412]
[1734243167877,1.5687,219.46,219.44,8.76749412]
[1734243174262,6.5348,219.5,219.45,8.76749412]
[1734243178185,1.5691,219.51,219.45,8.76749412]
[1734243179476,1.5691,219.51,219.46,8.76749412]
[1734243180865,1.5691,219.51,219.44,0.68328101]
[1734243180866,1.5691,219.51,219.45,8.76749412]
[1734243181186,1.5691,219.51,219.46,8.76749412]
[1734243182277,1.5691,219.51,219.47,8.76749412]
[1734243182486,1.5691,219.51,219.46,8.76749412]
[1734243186979,1.5691,219.51,219.47,8.76749412]
[1734243190684,1.5691,219.51,219.49,8.76749412]
[1734243190883,1.5086,219.6,219.5,9.45071161]
[1734243191215,1.5086,219.6,219.53,8.76749412]
[1734243191772,1.5086,219.6,219.52,8.76749412]
[1734243192395,5.72104312,219.62,219.52,8.76749412]
[1734243193897,5.72104312,219.62,219.53,8.76749412]
[1734243194308,5.72104312,219.62,219.54,8.76749412]
[1734243196111,5.72104312,219.62,219.55,8.76749412]
[1734243197497,5.72104312,219.62,219.51,0.68305429]
[1734243197814,5.72104312,219.62,219.53,8.76749412]
[1734243199604,5.72104312,219.62,219.52,8.76749412]
[1734243201117,5.72104312,219.62,219.53,8.76749412]
[1734243203133,20.0,219.59,219.45,1.5649]
[1734243203421,1.5885,219.58,219.49,8.76749412]
[1734243204689,1.5885,219.58,219.47,20.0]
[1734243205010,1.5885,219.58,219.47,28.76749412]
[1734243206094,20.0,219.54,219.38,6.5475]
[1734243206304,1.5885,219.53,219.41,8.76749412]
[1734243206902,1.5885,219.53,219.42,8.76749412]
[1734243207622,1.5885,219.53,219.39,20.0]
[1734243207822,6.4813,219.52,219.41,28.76749412]
[1734243208324,6.4813,219.52,219.42,8.76749412]
[1734243208824,6.4813,219.52,219.41,28.76749412]
[1734243211514,6.4813,219.52,219.41,8.76749412]
[1734243212024,23.902374,219.51,219.36,20.0]
[1734243212201,20.0,219.48,219.34,0.68348765]
[1734243212533,20.0,219.46,219.35,13.8]
[1734243212824,7.9915,219.45,219.35,13.8]
[1734243213225,7.9915,219.45,219.3,0.12549]
[1734243213438,7.9915,219.45,219.34,8.76749412]
[1734243214610,7.9915,219.45,219.35,8.76749412]
[1734243214825,7.9915,219.45,219.36,8.76749412]
[1734243215432,7.9915,219.45,219.35,8.76749412]
[1734243215632,7.9915,219.45,219.32,24.027864]
[1734243215808,7.9915,219.45,219.35,8.76749412]
[1734243216003,7.9915,219.45,219.37,8.76749412]
[1734243216423,7.9915,219.45,219.36,8.76749412]
[1734243218710,7.9915,219.45,219.32,0.25098]
[1734243218915,7.9915,219.45,219.35,8.76749412]
[1734243225816,24.027864,219.44,219.31,0.68367926]
[1734243226039,24.027864,219.44,219.34,8.76749412]
[1734243229139,24.027864,219.44,219.31,20.0]
[1734243229340,20.0,219.41,219.32,8.76749412]
[1734243230336,20.0,219.41,219.33,8.76749412]
[1734243235122,20.0,219.41,219.32,8.76749412]
[1734243236440,7.8218,219.4,219.28,20.0]
[1734243236631,7.8218,219.4,219.3,8.76749412]
[1734243237244,7.8218,219.4,219.27,1.24015185]
[1734243237245,7.8218,219.4,219.32,8.76749412]
[1734243237934,7.8218,219.4,219.31,8.76749412]
[1734243238547,7.8218,219.4,219.32,8.76749412]
[1734243240330,7.8218,219.4,219.33,8.76749412]
[1734243240535,7.8218,219.4,219.34,8.76749412]
[1734243241848,1.5364,219.4,219.35,8.76749412]
[1734243243429,1.5364,219.4,219.36,8.76749412]
[1734243243739,1.5364,219.4,219.35,8.76749412]
[1734243244954,1.5364,219.4,219.33,20.0]
[1734243245270,1.5364,219.4,219.35,8.76749412]
[1734243245852,1.5364,219.4,219.34,8.76749412]
[1734243246230,1.5364,219.4,219.33,20.0]
[1734243246231,1.5364,219.4,219.35,8.76749412]
[1734243246427,1.5841,219.48,219.36,8.76749412]
[1734243246630,1.5841,219.48,219.39,8.76749412]
[1734243246631,43.776884,219.47,219.39,8.76749412]
[1734243247061,43.776884,219.47,219.38,8.76749412]
[1734243249538,43.776884,219.47,219.37,8.76749412]
[1734243251542,1.5841,219.48,219.41,8.76749412]
[1734243252548,1.5841,219.48,219.42,8.76749412]
[1734243253964,1.5841,219.48,219.41,8.76749412]
[1734243259973,1.5841,219.48,219.43,8.76749412]
[1734243260265,7.757,219.58,219.44,8.76749412]
[1734243260869,0.12549,219.57,219.44,8.76749412]
[1734243261383,20.0,219.55,219.46,8.76749412]
[1734243261596,20.0,219.55,219.4,35.19546648]
[1734243261597,20.0,219.55,219.47,8.76749412]
[1734243262091,20.0,219.55,219.48,8.76749412]
[1734243262297,7.757,219.58,219.48,8.76749412]
[1734243262960,10.50079619,219.58,219.48,8.76749412]
[1734243263390,23.776884,219.57,219.48,8.76749412]
[1734243264967,23.776884,219.57,219.47,8.76749412]
[1734243270473,0.25098,219.56,219.44,20.0]
[1734243270684,0.25098,219.56,219.44,28.76749412]
[1734243271770,0.25098,219.56,219.45,8.76749412]
[1734243272871,0.25098,219.56,219.46,8.76749412]
[1734243275974,23.776884,219.57,219.46,8.76749412]
[1734243277486,22.276884,219.57,219.46,8.76749412]
[1734243277991,7.757,219.58,219.46,8.76749412]
[1734243279791,23.776884,219.57,219.46,8.76749412]
[1734243279981,23.776884,219.57,219.45,8.76749412]
[1734243280170,23.776884,219.57,219.43,20.6833616]
[1734243280171,23.776884,219.57,219.46,8.76749412]
[1734243283391,23.776884,219.57,219.45,8.76749412]
[1734243283587,20.0,219.55,219.46,8.76749412]
[1734243286285,20.0,219.55,219.44,0.25098]
[1734243286486,20.0,219.55,219.43,20.6833616]
[1734243286487,1.5369,219.54,219.43,20.0]
[1734243286686,1.5369,219.54,219.43,8.76749412]
[1734243286879,6.2079,219.53,219.41,8.76749412]
[1734243288388,6.2079,219.53,219.42,8.76749412]
[1734243288989,6.2079,219.53,219.4,0.25098]
[1734243289192,6.2079,219.53,219.42,8.76749412]
[1734243293481,1.5605,219.51,219.4,8.76749412]
[1734243293705,1.5605,219.51,219.37,20.0]
[1734243293706,20.0,219.49,219.37,20.0]
[1734243293903,20.0,219.49,219.39,8.76749412]
[1734243294204,20.0,219.49,219.38,8.76749412]
[1734243295180,8.0693,219.48,219.38,8.76749412]
[1734243295495,8.0693,219.48,219.35,8.76749412]
[1734243295496,20.0,219.45,219.35,8.76749412]
[1734243297007,20.0,219.45,219.36,8.76749412]
[1734243297589,8.0693,219.48,219.41,8.76749412]
[1734243297915,1.5605,219.48,219.44,8.76749412]
[1734243298132,1.5605,219.48,219.45,8.76749412]
[1734243298283,1.5605,219.48,219.44,8.76749412]
[1734243300391,1.5605,219.48,219.43,8.76749412]
[1734243301103,1.5605,219.48,219.42,8.76749412]
[1734243302385,1.5605,219.48,219.43,8.76749412]
[1734243304706,8.0693,219.53,219.45,8.76749412]
[1734243304883,8.0693,219.53,219.47,8.76749412]
[1734243305083,8.0693,219.53,219.48,8.76749412]
[1734243305681,1.5605,219.53,219.5,8.76749412]
[1734243305886,6.5088,219.58,219.51,8.76749412]
[1734243306703,6.5088,219.58,219.48,8.76749412]
[1734243307294,6.5088,219.58,219.49,8.76749412]
[1734243309010,6.5088,219.58,219.5,8.76749412]
[1734243309912,6.5088,219.58,219.51,8.76749412]
[1734243314311,1.5605,219.59,219.53,8.76749412]
[1734243314517,1.5605,219.59,219.54,8.76749412]
[1734243315338,1.5605,219.59,219.53,8.76749412]
[1734243316893,1.5605,219.59,219.5,0.12549]
[1734243316894,9.22210868,219.66,219.56,8.76749412]
[1734243317094,1.5071,219.73,219.57,0.68309452]
[1734243317296,1.5071,219.73,219.62,8.76749412]
[1734243317820,1.5071,219.73,219.61,8.76749412]
[1734243318313,1.5071,219.73,219.57,0.68309452]
[1734243318525,20.0,219.68,219.59,8.76749412]
[1734243318695,1.5071,219.73,219.62,8.76749412]
[1734243319922,1.5071,219.73,219.63,8.76749412]
[1734243320102,1.5071,219.73,219.64,8.76749412]
[1734243322796,1.5071,219.73,219.6,0.68293466]
[1734243322797,1.5071,219.73,219.65,8.76749412]
[1734243322999,1.5071,219.73,219.66,8.76749412]
[1734243323823,20.0,219.72,219.62,0.68270059]
[1734243324121,20.0,219.72,219.65,8.76749412]
[1734243324419,20.0,219.72,219.64,8.76749412]
[1734243327514,20.0,219.72,219.6,20.12549]
[1734243327725,20.0,219.72,219.62,8.76749412]
[1734243328533,20.0,219.72,219.63,8.76749412]
[1734243330412,20.0,219.72,219.62,8.76749412]
[1734243331123,20.0,219.72,219.65,8.76749412]
[1734243331822,1.5071,219.73,219.66,8.76749412]
[1734243332326,1.5071,219.73,219.67,8.76749412]
[1734243333526,1.5071,219.73,219.65,8.76749412]
[1734243333923,1.5071,219.73,219.66,8.76749412]
[1734243334923,1.5071,219.73,219.69,0.16870349]
[1734243336933,1.5071,219.73,219.69,8.93619761]
[1734243337232,20.0,219.77,219.69,8.93619761]
[1734243337429,8.1756,219.85,219.71,8.76749412]
[1734243337730,8.1756,219.85,219.72,8.76749412]
[1734243337928,8.1756,219.85,219.74,8.76749412]
[1734243338133,8.1756,219.85,219.69,0.85128322]
[1734243338134,8.1756,219.85,219.75,8.76749412]
[1734243338314,8.1756,219.85,219.74,8.76749412]
[1734243339617,20.0,219.82,219.74,8.76749412]
[1734243340020,20.0,219.82,219.73,8.76749412]
[1734243342849,20.0,219.82,219.74,8.76749412]
[1734243343238,8.1756,219.85,219.75,8.76749412]
[1734243343633,8.1756,219.85,219.78,8.76749412]
[1734243343935,8.1756,219.85,219.79,8.76749412]
[1734243344141,1.5777,219.85,219.8,8.76749412]
[1734243345730,1.5777,219.85,219.75,0.68227337]
[1734243345731,1.5777,219.85,219.79,8.76749412]
[1734243346635,1.5777,219.85,219.75,20.0]
[1734243346848,1.5777,219.85,219.73,0.68231281]
[1734243347034,23.776884,219.84,219.74,8.76749412]
[1734243349246,23.776884,219.84,219.82,0.16870349]
[1734243353544,1.5777,219.85,219.82,0.16870349]
[1734243357447,6.5979,219.9,219.82,0.16870349]
[1734243359250,20.0,219.87,219.82,0.16870349]
[1734243363239,20.0,219.83,219.82,0.16870349]